fUSD/lending_fUSD_20240115
["ID","MTS","AMOUNT","RATE_DAILY","PERIOD"]
[311646658,1705279835946,-151.04115,0.00024848,2]
[311646659,1705279835956,-151.04115,0.00024848,2]
[311646661,1705279835965,-151.04115,0.00024848,2]
[311646662,1705279835975,-390.13619953,0.00024898,2]
[311646664,1705279835984,-151.04115,0.00024898,2]
[311646667,1705279835995,-151.04115,0.00024898,2]
[311646668,1705279836004,-151.04115,0.00024898,2]
[311646670,1705279836014,-151.04115,0.00024898,2]
[311646672,1705279836023,-151.04115,0.00024898,2]
[311646674,1705279836033,-151.04115,0.00024898,2]
[311646676,1705279836043,-151.04115,0.00024898,2]
[311646677,1705279836052,-151.04115,0.00024898,2]
[311646678,1705279836063,-151.04115,0.00024898,2]
[311646679,1705279836073,-151.04115,0.00024898,2]
[311646680,1705279836083,-151.04115,0.00024898,2]
[311646681,1705279836093,-151.04115,0.00024898,2]
[311646682,1705279836102,-151.04115,0.00024898,2]
[311646683,1705279836112,-151.04115,0.00024898,2]
[311646684,1705279836122,-151.04115,0.00024898,2]
[311646685,1705279836133,-151.04115,0.00024898,2]
[311646686,1705279836143,-27587.01769278,0.00024899,2]
[311646687,1705279836158,-321.90484521,0.00024899,2]
[311646688,1705279836170,-562.4996314,0.00024899,2]
[311646689,1705279836203,-252.7154311,0.00024899,2]
[311646690,1705279836226,-384.38357155,0.00024899,2]
[311646691,1705279836239,-4004.42481718,0.00024899,2]
[311646704,1705279838779,-2011.64005001,0.00024899,2]
[311646707,1705279838791,-11927.22409985,0.00024899,2]
[311646710,1705279838819,-619601.64999319,0.00024899,2]
[311646712,1705279838828,-50169.0,0.000249,2]
[311646714,1705279838837,-3975.0,0.000249,2]
[311646716,1705279838847,-200.0,0.000249,9]
[311646718,1705279838856,-493.83198123,0.00025,2]
[311646721,1705279838866,-167.23848345,0.00025,2]
[311646722,1705279838875,-1247.79685735,0.00025,2]
[311646724,1705279838884,-483.29560167,0.00025,2]
[311646727,1705279838895,-1583.00550367,0.00025,2]
[311646729,1705279838907,-1070.01161759,0.00025,2]
[311646731,1705279838916,-201.78427875,0.00025,2]
[311646733,1705279838926,-303.07385153,0.00025,2]
[311646735,1705279838935,-450.0,0.0002502,3]
[311646737,1705279838945,-1000.0,0.00025302,3]
[311646739,1705279838954,-416.10607666,0.00025357,3]
[311646741,1705279838964,-4887.5556599,0.00025379,3]
[311646743,1705279838973,-1763.58300581,0.00025379,3]
[311646745,1705279838982,-1000.0,0.00025386,3]
[311646747,1705279838992,-369.76,0.00025447,2]
[311646749,1705279839001,-226.42907382,0.00025475,3]
[311646751,1705279839010,-205.0,0.0002566,7]
[311646753,1705279839019,-463.55,0.00025735,2]
[311646755,1705279839028,-2435.06602024,0.00025805,2]
[311646757,1705279839038,-150.0,0.00026079,2]
[311646759,1705279839047,-500.0,0.0002618,2]
[311646761,1705279839056,-735.04,0.00026205,2]
[311646763,1705279839065,-1354.0,0.00026422,2]
[311646765,1705279839074,-262.744,0.00026422,2]
[311646767,1705279839083,-2218.428,0.00026422,2]
[311646769,1705279839093,-2913.689,0.00026422,2]
[311646771,1705279839102,-839.0,0.00026422,2]
[311646773,1705279839111,-944.0,0.00026422,2]
[311646775,1705279839120,-1916.029,0.00026422,2]
[311646777,1705279839130,-1268.0,0.00026422,2]
[311646779,1705279839140,-425.0,0.00026422,2]
[311646781,1705279839149,-1932.0,0.00026422,2]
[311646783,1705279839158,-162.505,0.00026422,2]
[311646785,1705279839168,-370.927,0.00026422,2]
[311646787,1705279839177,-884.0,0.00026422,2]
[311646789,1705279839186,-235.0,0.00026422,2]
[311646791,1705279839195,-250.0,0.00026422,2]
[311646793,1705279839204,-2271.0,0.00026422,2]
[311646795,1705279839213,-19688.0,0.00026422,2]
[311646797,1705279839222,-4170.0,0.00026422,2]
[311646799,1705279839231,-2903.0,0.00026422,2]
[311646801,1705279839240,-152.536,0.00026422,2]
[311646803,1705279839249,-1029.0,0.00026422,2]
[311646805,1705279839259,-201.716,0.00026422,2]
[311646807,1705279839268,-179.933,0.00026422,2]
[311646809,1705279839277,-156.69,0.00026544,2]
[311646811,1705279839287,-771.57,0.00026575,2]
[311646813,1705279839295,-463.55,0.00026714,2]
[311646815,1705279839305,-209.0,0.000268,2]
[311646817,1705279839314,-5000.0,0.000269,2]
[311646819,1705279839326,-415.79405029,0.00027,2]
[311646821,1705279839334,-171.31214998,0.000272,2]
[311646823,1705279839343,-155.0,0.00027397,2]
[311646825,1705279839353,-250.0,0.00027397,2]
[311646827,1705279839362,-14046.36,0.00027397,2]
[311646829,1705279839371,-2500.0,0.00027397,4]
[311646830,1705279839381,-5690.6930067,0.000274,2]
[311646831,1705279839391,-250.0,0.000274,2]
[311646832,1705279839401,-8000.0,0.000274,2]
[311646833,1705279839412,-1610.85,0.000274,2]
[311646834,1705279839421,-1610.85,0.000274,2]
[311646835,1705279839431,-1610.85,0.000274,2]
[311646836,1705279839440,-1610.85,0.000274,2]
[311646837,1705279839449,-151.04115,0.00027498,2]
[311646838,1705279839459,-151.04115,0.00027498,2]
[311646839,1705279839468,-151.04115,0.00027498,2]
[311646841,1705279839477,-151.04115,0.00027498,2]
[311646843,1705279839486,-151.04115,0.00027498,2]
[311646845,1705279839495,-151.04115,0.00027498,2]
[311646847,1705279839504,-151.04115,0.00027498,2]
[311646849,1705279839513,-151.04115,0.00027498,2]
[311646851,1705279839523,-151.04115,0.00027498,2]
[311646853,1705279839533,-151.04115,0.00027498,2]
[311646855,1705279839542,-151.04115,0.00027498,2]
[311646857,1705279839552,-151.04115,0.00027498,2]
[311646859,1705279839561,-151.04115,0.00027498,2]
[311646861,1705279839571,-151.04115,0.00027498,2]
[311646864,1705279839592,-151.04115,0.00027498,2]
[311646866,1705279839601,-151.04115,0.00027498,2]
[311646868,1705279839611,-151.04115,0.00027498,2]
[311646870,1705279839620,-151.04115,0.00027498,2]
[311646872,1705279839631,-450.0,0.000275,3]
[311646875,1705279839641,-14046.36,0.00027556,2]
[311646877,1705279839651,-205.0,0.00027568,10]
[311646879,1705279839660,-151.87,0.00027672,2]
[311646881,1705279839671,-463.55,0.00027692,2]
[311646883,1705279839681,-369.76,0.00027711,2]
[311646885,1705279839690,-14046.36,0.00027714,2]
[311646887,1705279839699,-7635.84,0.0002772,2]
[311646889,1705279839709,-4254.89310935,0.00027753,2]
[311646891,1705279839719,-500.0,0.000278,10]
[311646893,1705279839729,-829.55,0.00027823,2]
[311646894,1705279839738,-14046.36,0.00027872,2]
[311646896,1705279839748,-800.0,0.000279,10]
[311646898,1705279839758,-151.87,0.0002798,2]
[311646900,1705279839768,-164.19,0.00027996,2]
[311646903,1705279839779,-173.2111182,0.00027997,2]
[311646904,1705279839789,-1083.24890893,0.00027997,2]
[311646906,1705279839799,-372.7193726,0.00027997,2]
[311646908,1705279839809,-161.95122086,0.00027997,2]
[311646910,1705279839820,-202.15120204,0.00028,2]
[311646912,1705279839829,-687.85574589,0.00028,2]
[311646915,1705279839839,-3000.0,0.00028,2]
[311646917,1705279839849,-2280.00658169,0.00028,2]
[311646919,1705279839859,-3000.0,0.0002801,2]
[311646921,1705279839869,-3000.0,0.0002802,2]
[311646923,1705279839885,-4254.89310935,0.00028021,2]
[311646924,1705279839901,-3000.0,0.0002803,2]
[311646965,1705279840280,-14046.36,0.0002803,2]
[311646967,1705279840290,-3000.0,0.0002804,2]
[311646969,1705279840299,-3000.0,0.0002805,2]
[311646971,1705279840309,-3000.0,0.0002806,2]
[311646973,1705279840319,-3000.0,0.0002807,2]
[311646975,1705279840329,-3000.0,0.0002808,2]
[311646977,1705279840338,-1610.85,0.00028087,2]
[311646979,1705279840348,-1610.85,0.00028087,2]
[311646981,1705279840358,-1610.85,0.00028087,2]
[311646983,1705279840368,-1610.85,0.00028087,2]
[311646985,1705279840377,-1610.85,0.00028087,2]
[311646987,1705279840387,-1610.85,0.00028087,2]
[311646989,1705279840398,-3000.0,0.0002809,2]
[311646992,1705279840408,-1310026.84693796,0.00028096,2]
[311646994,1705279840418,-3000.0,0.000281,2]
[311646995,1705279840429,-3000.0,0.0002811,2]
[311646998,1705279840439,-3000.0,0.0002812,2]
[311647000,1705279840449,-3000.0,0.0002813,2]
[311647001,1705279840459,-3000.0,0.0002814,2]
[311647004,1705279840469,-171.31214998,0.00028145,2]
[311647005,1705279840479,-3000.0,0.0002815,2]
[311647007,1705279840489,-3000.0,0.0002816,2]
[311647009,1705279840499,-3000.0,0.0002817,2]
[311647012,1705279840509,-3000.0,0.0002818,2]
[311647014,1705279840519,-14046.36,0.00028189,2]
[311647016,1705279840529,-3000.0,0.0002819,2]
[311647018,1705279840539,-3000.0,0.000282,2]
[311647019,1705279840548,-156.69,0.00028209,2]
[311647021,1705279840558,-3000.0,0.0002821,2]
[311647023,1705279840567,-3000.0,0.0002822,2]
[311647025,1705279840578,-3000.0,0.0002823,2]
[311647027,1705279840587,-3000.0,0.0002824,2]
[311647029,1705279840597,-3306.729071,0.0002825,2]
[311647031,1705279840607,-151.87,0.00028287,2]
[311647034,1705279840617,-4254.89310935,0.00028289,2]
[311647036,1705279840626,-14046.36,0.00028347,2]
[311647038,1705279840636,-289.52628459,0.00028458,2]
[311647039,1705279840647,-1000.0,0.00028499,2]
[311647042,1705279840657,-463.26204504,0.00028499,2]
[311647044,1705279840667,-14046.36,0.00028505,2]
[311647046,1705279840676,-4254.89310935,0.00028558,2]
[311647048,1705279840686,-151.87,0.00028595,2]
[311647050,1705279840695,-271.8415,0.00028622,2]
[311647052,1705279840704,-14046.36,0.00028664,2]
[311647054,1705279840713,-463.55,0.00028671,2]
[311647056,1705279840722,-155.0,0.00028767,2]
[311647058,1705279840732,-6988.0,0.000288,2]
[311647060,1705279840741,-14046.36,0.00028822,2]
[311647062,1705279840750,-4254.89310935,0.00028826,2]
[311647064,1705279840759,-1100.0,0.000289,10]
[311647066,1705279840768,-151.87,0.00028902,2]
[311647068,1705279840778,-939.9656371,0.00029,4]
[311647070,1705279840787,-454.84823364,0.00029,2]
[311647072,1705279840797,-401.38,0.00029041,2]
[311647074,1705279840807,-171.31214998,0.00029091,2]
[311647076,1705279840816,-4254.89310935,0.00029095,2]
[311647078,1705279840825,-20123.0,0.00029123,4]
[311647080,1705279840836,-300.0,0.00029132,2]
[311647082,1705279840848,-408.24,0.00029178,2]
[311647084,1705279840857,-408.24,0.00029178,2]
[311647086,1705279840867,-401.88,0.00029178,2]
[311647088,1705279840877,-151.87,0.0002921,2]
[311647090,1705279840887,-1000.0,0.000293,2]
[311647092,1705279840899,-164.19,0.00029312,2]
[311647094,1705279840909,-4254.89310935,0.00029363,2]
[311647096,1705279840918,-425.0,0.00029422,2]
[311647098,1705279840927,-1930.0,0.00029422,2]
[311647100,1705279840937,-2271.0,0.00029422,2]
[311647102,1705279840946,-150.0,0.00029422,2]
[311647104,1705279840956,-11482.143,0.00029422,2]
[311647106,1705279840966,-1864.437,0.00029422,2]
[311647108,1705279840975,-2903.0,0.00029422,2]
[311647110,1705279840985,-1029.0,0.00029422,2]
[311647112,1705279840994,-150.0,0.00029422,2]
[311647114,1705279841004,-153.06,0.00029425,2]
[311647117,1705279841013,-205.0,0.00029476,13]
[311647119,1705279841023,-735.04,0.00029481,2]
[311647120,1705279841032,-5000.0,0.00029482,2]
[311647122,1705279841041,-9251.85683849,0.00029482,2]
[311647124,1705279841051,-187.78095067,0.000295,3]
[311647126,1705279841060,-151.87,0.00029517,2]
[311647128,1705279841070,-475.16,0.00029518,2]
[311647130,1705279841080,-1000.0,0.00029565,2]
[311647132,1705279841090,-4254.89310935,0.00029632,2]
[311647135,1705279841100,-463.55,0.00029649,2]
[311647136,1705279841109,-173.21111819,0.00029702,2]
[311647138,1705279841118,-1083.24890892,0.00029702,2]
[311647140,1705279841127,-372.7193726,0.00029702,2]
[311647142,1705279841137,-2280.00658168,0.00029703,2]
[311647145,1705279841148,-713.74,0.00029761,2]
[311647147,1705279841159,-311.74164615,0.00029761,2]
[311647149,1705279841169,-287.71847632,0.00029761,2]
[311647151,1705279841177,-533.7952539,0.00029761,2]
[311647153,1705279841187,-162.07655107,0.00029762,2]
[311647155,1705279841196,-1941.28804665,0.00029763,2]
[311647157,1705279841206,-150.0,0.0002978,2]
[311647159,1705279841216,-175.36700291,0.000298,2]
[311647161,1705279841225,-1400.0,0.000298,10]
[311647163,1705279841235,-150.0,0.00029806,2]
[311647165,1705279841244,-150.0,0.00029807,2]
[311647167,1705279841254,-151.87,0.00029825,2]
[311647169,1705279841263,-156.69,0.00029873,2]
[311647171,1705279841272,-2000.0,0.00029899,3]
[311647173,1705279841282,-2565.9716,0.00029899,2]
[311647175,1705279841291,-4254.89310935,0.000299,2]
[311647177,1705279841300,-200.0,0.000299,10]
[311647179,1705279841310,-193.37650752,0.000299,17]
[311647181,1705279841320,-238.15555752,0.000299,2]
[311647183,1705279841330,-150.0,0.00029962,2]
[311647185,1705279841339,-150.0,0.00029962,2]
[311647187,1705279841349,-150.0,0.00029962,2]
[311647189,1705279841358,-408.24,0.00029962,2]
[311647191,1705279841368,-150.0,0.00029962,2]
[311647193,1705279841378,-150.0,0.00029962,2]
[311647195,1705279841388,-418.07,0.00029962,2]
[311647197,1705279841398,-300.0,0.00029962,2]
[311647199,1705279841407,-408.24,0.00029962,2]
[311647201,1705279841415,-628.5,0.00029962,2]
[311647203,1705279841425,-588.03,0.00029962,2]
[311647205,1705279841435,-150.0,0.00029962,2]
[311647207,1705279841445,-150.0,0.00029962,2]
[311647209,1705279841454,-835.39,0.00029962,2]
[311647211,1705279841464,-300.0,0.00029962,2]
[311647213,1705279841474,-300.0,0.00029962,2]
[311647214,1705279841483,-387.73,0.00029962,2]
[311647215,1705279841492,-150.0,0.00029962,2]
[311647216,1705279841502,-150.0,0.00029962,2]
[311647217,1705279841511,-508.9,0.00029962,2]
[311647218,1705279841521,-150.0,0.00029962,2]
[311647219,1705279841530,-150.0,0.00029962,2]
[311647220,1705279841540,-294.11,0.00029962,2]
[311647221,1705279841550,-369.76,0.00029975,2]
[311647223,1705279841558,-575.17841263,0.0002998,3]
[311647225,1705279841568,-150.0,0.00029984,2]
[311647227,1705279841578,-3805.1020072,0.00029997,2]
[311647229,1705279841587,-724.02279719,0.00029997,2]
[311647231,1705279841597,-22742.41168167,0.00029997,2]
[311647233,1705279841607,-1046.54380072,0.00029998,2]
[311647235,1705279841617,-300.41501205,0.00029998,2]
[311647237,1705279841627,-126530.22174754,0.00029998,2]
[311647239,1705279841636,-239.23240074,0.00029998,2]
[311647241,1705279841647,-256.67819371,0.00029999,2]
[311647243,1705279841656,-508.43471138,0.00029999,2]
[311647245,1705279841665,-200.0,0.00029999,2]
[311647247,1705279841677,-2308.05324275,0.00029999,7]
[311647249,1705279841687,-1007.6671,0.00029999,2]
[311647251,1705279841696,-4000.0,0.00029999,2]
[311647253,1705279841705,-500.0,0.0003,2]
[311647255,1705279841714,-500.0,0.0003,2]
[311647257,1705279841723,-500.0,0.0003,2]
[311647260,1705279841733,-500.0,0.0003,2]
[311647262,1705279841742,-500.0,0.0003,2]
[311647264,1705279841751,-500.0,0.0003,2]
[311647266,1705279841760,-500.0,0.0003,2]
[311647268,1705279841770,-500.0,0.0003,2]
[311647270,1705279841779,-500.0,0.0003,2]
[311647272,1705279841789,-500.0,0.0003,2]
[311647274,1705279841799,-500.0,0.0003,2]
[311647276,1705279841808,-500.0,0.0003,2]
[311647278,1705279841817,-500.0,0.0003,2]
[311647280,1705279841826,-500.0,0.0003,2]
[311647282,1705279841836,-500.0,0.0003,2]
[311647284,1705279841845,-500.0,0.0003,2]
[311647286,1705279841855,-500.0,0.0003,2]
[311647288,1705279841865,-500.0,0.0003,2]
[311647290,1705279841876,-500.0,0.0003,2]
[311647292,1705279841891,-500.0,0.0003,2]
[311647294,1705279841901,-500.0,0.0003,2]
[311647296,1705279841911,-500.0,0.0003,2]
[311647298,1705279841922,-500.0,0.0003,2]
[311647300,1705279841932,-500.0,0.0003,2]
[311647302,1705279841942,-500.0,0.0003,2]
[311647304,1705279841951,-500.0,0.0003,2]
[311647306,1705279841960,-500.0,0.0003,2]
[311647308,1705279841971,-500.0,0.0003,2]
[311647310,1705279841980,-500.0,0.0003,2]
[311647312,1705279841990,-500.0,0.0003,2]
[311647314,1705279842000,-500.0,0.0003,2]
[311647316,1705279842010,-500.0,0.0003,2]
[311647318,1705279842019,-500.0,0.0003,2]
[311647320,1705279842029,-500.0,0.0003,2]
[311647322,1705279842039,-500.0,0.0003,2]
[311647324,1705279842049,-500.0,0.0003,2]
[311647326,1705279842058,-500.0,0.0003,2]
[311647328,1705279842068,-500.0,0.0003,2]
[311647330,1705279842077,-500.0,0.0003,2]
[311647332,1705279842086,-500.0,0.0003,2]
[311647334,1705279842096,-500.0,0.0003,2]
[311647336,1705279842106,-500.0,0.0003,2]
[311647338,1705279842115,-500.0,0.0003,2]
[311647340,1705279842124,-500.0,0.0003,2]
[311647342,1705279842133,-500.0,0.0003,2]
[311647344,1705279842144,-500.0,0.0003,2]
[311647346,1705279842153,-500.0,0.0003,2]
[311647348,1705279842162,-500.0,0.0003,2]
[311647350,1705279842171,-500.0,0.0003,2]
[311647352,1705279842181,-500.0,0.0003,2]
[311647354,1705279842191,-500.0,0.0003,2]
[311647356,1705279842202,-765708.0,0.0003,2]
[311647358,1705279842212,-9629.9439869,0.0003,2]
[311647360,1705279842221,-308587.54398008,0.0003,4]
[311647362,1705279842231,-582.05205839,0.0003,2]
[311647364,1705279842240,-2500.0,0.0003,2]
[311647366,1705279842250,-207.92795594,0.0003,4]
[311647368,1705279842259,-5000.0,0.0003,10]
[311647369,1705279842269,-19757.91663075,0.0003,4]
[311647371,1705279842278,-678.07747155,0.0003,4]
[311647374,1705279842288,-6854.58505687,0.0003,4]
[311647376,1705279842298,-1572.87627363,0.0003,2]
[311647378,1705279842308,-690.91027543,0.0003,2]
[311647380,1705279842317,-4462.19336513,0.0003,4]
[311647382,1705279842327,-904.74096856,0.0003,4]
[311647384,1705279842336,-2550.6211898,0.0003,4]
[311647386,1705279842345,-648.26024884,0.0003,4]
[311647388,1705279842355,-905.03730341,0.0003,2]
[311647389,1705279842364,-275.63,0.0003,2]
[311647391,1705279842374,-275.63,0.0003,2]
[311647393,1705279842383,-275.63,0.0003,2]
[311647395,1705279842393,-275.63,0.0003,2]
[311647398,1705279842403,-275.63,0.0003,2]
[311647399,1705279842412,-275.63,0.0003,2]
[311647402,1705279842423,-275.63,0.0003,2]
[311647404,1705279842432,-275.63,0.0003,2]
[311647406,1705279842442,-275.63,0.0003,2]
[311647408,1705279842451,-275.63,0.0003,2]
[311647410,1705279842461,-275.63,0.0003,2]
[311647411,1705279842470,-275.63,0.0003,2]
[311647413,1705279842479,-8750.0,0.0003,2]
[311647416,1705279842488,-3000.0,0.0003,2]
[311647417,1705279842498,-203.0,0.0003,2]
[311647419,1705279842507,-1000.0,0.0003,2]
[311647422,1705279842516,-157.49,0.0003,2]
[311647424,1705279842525,-157.49,0.0003,2]
[311647426,1705279842535,-154.3,0.00030004,2]
[311647428,1705279842543,-20000.0,0.00030036,2]
[311647430,1705279842553,-55555.0,0.00030036,3]
[311647431,1705279842562,-250.0,0.00030036,2]
[311647433,1705279842571,-171.31214998,0.00030036,2]
[311647436,1705279842580,-8750.0,0.00030062,2]
[311647438,1705279842589,-251.65794723,0.000301,4]
[311647440,1705279842599,-3000.0,0.000301,2]
[311647442,1705279842608,-8750.0,0.00030125,2]
[311647444,1705279842617,-150.0,0.00030132,2]
[311647445,1705279842626,-151.87,0.00030132,2]
[311647447,1705279842635,-1902.5510036,0.00030133,2]
[311647449,1705279842646,-550.94962823,0.00030134,4]
[311647451,1705279842655,-246.52989565,0.00030134,2]
[311647453,1705279842664,-2606.18162672,0.00030134,4]
[311647455,1705279842673,-155.0,0.00030134,4]
[311647457,1705279842683,-947.5997059,0.00030134,4]
[311647459,1705279842692,-24496.74833206,0.00030135,2]
[311647461,1705279842701,-151.0,0.00030136,7]
[311647463,1705279842711,-151.0,0.00030136,7]
[311647465,1705279842721,-151.0,0.00030136,7]
[311647467,1705279842730,-151.0,0.00030136,7]
[311647469,1705279842739,-155.879494,0.00030136,7]
[311647471,1705279842749,-151.0,0.00030136,7]
[311647473,1705279842759,-151.0,0.00030136,7]
[311647475,1705279842768,-151.0,0.00030136,7]
[311647478,1705279842778,-151.0,0.00030136,7]
[311647479,1705279842787,-151.0,0.00030136,7]
[311647481,1705279842797,-151.0,0.00030136,7]
[311647483,1705279842806,-151.0,0.00030136,7]
[311647485,1705279842815,-151.0,0.00030136,7]
[311647487,1705279842825,-151.0,0.00030136,7]
[311647489,1705279842834,-251.316492,0.00030136,7]
[311647491,1705279842843,-151.0,0.00030136,7]
[311647493,1705279842853,-151.0,0.00030136,7]
[311647495,1705279842862,-273.09299,0.00030136,7]
[311647497,1705279842872,-151.0,0.00030136,7]
[311647499,1705279842882,-151.0,0.00030136,7]
[311647501,1705279842896,-175.397381,0.00030136,7]
[311647503,1705279842906,-175.397381,0.00030136,7]
[311647505,1705279842915,-232.347256,0.00030136,7]
[311647507,1705279842925,-232.347256,0.00030136,7]
[311647509,1705279842934,-151.0,0.00030136,7]
[311647511,1705279842944,-151.0,0.00030136,7]
[311647513,1705279842954,-281.224429,0.00030136,7]
[311647515,1705279842963,-151.0,0.00030136,7]
[311647517,1705279842973,-151.0,0.00030136,7]
[311647519,1705279842982,-151.0,0.00030136,7]
[311647521,1705279842991,-170.560352,0.00030136,7]
[311647523,1705279843001,-159.120713,0.00030136,7]
[311647525,1705279843010,-1197.673262,0.00030136,7]
[311647527,1705279843019,-1197.673262,0.00030136,7]
[311647529,1705279843028,-414.019545,0.00030136,7]
[311647531,1705279843037,-414.019545,0.00030136,7]
[311647533,1705279843047,-151.0,0.00030136,7]
[311647535,1705279843057,-500.0,0.00030136,2]
[311647537,1705279843067,-500.0,0.00030136,2]
[311647539,1705279843076,-621.85895226,0.00030136,2]
[311647542,1705279843086,-500.0,0.00030136,2]
[311647545,1705279843095,-500.0,0.00030136,2]
[311647548,1705279843105,-500.0,0.00030136,2]
[311647551,1705279843114,-496.66865784,0.00030136,2]
[311647554,1705279843124,-462.06576575,0.00030136,2]
[311647556,1705279843133,-500.0,0.00030136,2]
[311647559,1705279843144,-287.68934641,0.00030136,2]
[311647562,1705279843153,-187.54319004,0.00030136,2]
[311647565,1705279843162,-449.19,0.00030136,2]
[311647569,1705279843172,-170.20616057,0.00030136,2]
[311647572,1705279843181,-286.06664795,0.00030136,2]
[311647575,1705279843191,-500.0,0.00030136,2]
[311647577,1705279843200,-500.0,0.00030136,2]
[311647581,1705279843210,-500.0,0.00030136,2]
[311647585,1705279843219,-500.0,0.00030136,2]
[311647589,1705279843229,-500.0,0.00030136,2]
[311647593,1705279843239,-253.5082876,0.00030136,2]
[311647598,1705279843249,-241.16403126,0.00030136,2]
[311647603,1705279843258,-500.0,0.00030136,2]
[311647608,1705279843268,-500.0,0.00030136,2]
[311647613,1705279843278,-521.34258869,0.00030136,2]
[311647618,1705279843288,-590.08677424,0.00030136,2]
[311647622,1705279843297,-500.0,0.00030136,2]
[311647625,1705279843307,-500.56579933,0.00030136,2]
[311647628,1705279843316,-500.0,0.00030136,2]
[311647632,1705279843326,-502.32994152,0.00030136,2]
[311647636,1705279843335,-500.0,0.00030136,2]
[311647640,1705279843345,-500.0,0.00030136,2]
[311647644,1705279843354,-500.0,0.00030136,2]
[311647648,1705279843365,-500.0,0.00030136,2]
[311647650,1705279843374,-500.0,0.00030136,2]
[311647652,1705279843384,-500.0,0.00030136,2]
[311647654,1705279843394,-500.0,0.00030136,2]
[311647656,1705279843403,-500.0,0.00030136,2]
[311647658,1705279843413,-500.0,0.00030136,2]
[311647660,1705279843422,-506.81565164,0.00030136,10]
[311647662,1705279843431,-500.0,0.00030136,2]
[311647665,1705279843441,-1000.0,0.00030136,2]
[311647667,1705279843450,-500.0,0.00030136,2]
[311647670,1705279843459,-500.0,0.00030136,2]
[311647673,1705279843469,-500.0,0.00030136,2]
[311647675,1705279843478,-500.0,0.00030136,2]
[311647677,1705279843486,-500.0,0.00030136,2]
[311647679,1705279843495,-500.0,0.00030136,30]
[311647681,1705279843505,-500.0,0.00030136,2]
[311647683,1705279843514,-500.0,0.00030136,2]
[311647685,1705279843523,-500.0,0.00030136,2]
[311647687,1705279843533,-500.0,0.00030136,2]
[311647689,1705279843543,-500.0,0.00030136,2]
[311647691,1705279843552,-500.0,0.00030136,2]
[311647694,1705279843561,-500.0,0.00030136,2]
[311647695,1705279843571,-500.0,0.00030136,2]
[311647697,1705279843580,-500.0,0.00030136,2]
[311647699,1705279843589,-500.0,0.00030136,2]
[311647701,1705279843597,-500.0,0.00030136,2]
[311647703,1705279843607,-500.0,0.00030136,2]
[311647705,1705279843616,-500.0,0.00030136,2]
[311647707,1705279843625,-503.41088537,0.00030136,2]
[311647708,1705279843634,-500.0,0.00030136,2]
[311647709,1705279843645,-218.07837128,0.00030136,2]
[311647710,1705279843654,-537.46,0.00030136,2]
[311647711,1705279843667,-500.0,0.00030136,2]
[311647712,1705279843676,-500.0,0.00030136,2]
[311647713,1705279843685,-500.0,0.00030136,2]
[311647714,1705279843694,-156.23001202,0.00030136,2]
[311647715,1705279843703,-606.73267861,0.00030136,2]
[311647716,1705279843713,-500.0,0.00030136,2]
[311647717,1705279843722,-500.0,0.00030136,2]
[311647718,1705279843731,-500.0,0.00030136,2]